bitfinex/quotes_BTCUSD_20250403
["timestamp","ask_amount","ask_price","bid_price","bid_amount"]
[1743683756421,0.02047518,82585.0,82584.0,0.5146667]
[1743683757354,0.02047518,82585.0,82584.0,0.3720267]
[1743683757667,0.02047518,82585.0,82584.0,0.5145067]
[1743683758593,0.02047518,82585.0,82584.0,0.3977511]
[1743683760159,0.26264918,82585.0,82584.0,0.0009861]
[1743683760357,0.26264918,82585.0,82578.0,0.10740441]
[1743683760358,0.012108,82584.0,82578.0,0.10740441]
[1743683760558,0.594301,82579.0,82578.0,0.10740441]
[1743683760783,0.844301,82579.0,82578.0,0.10740441]
[1743683761564,0.254322,82572.0,82571.0,0.10740441]
[1743683761763,0.504322,82572.0,82571.0,0.10740441]
[1743683764063,0.844322,82572.0,82571.0,0.10740441]
[1743683764859,0.844322,82572.0,82559.0,0.254362]
[1743683764860,0.24223,82566.0,82560.0,0.242248]
[1743683765194,0.25,82566.0,82565.0,0.254344]
[1743683765423,0.25,82566.0,82565.0,0.3720967]
[1743683766119,0.25,82566.0,82565.0,0.2432301]
[1743683766306,0.25,82566.0,82565.0,0.0009971]
[1743683767420,0.25,82566.0,82565.0,0.2432301]
[1743683767623,0.25,82566.0,82565.0,0.2553411]
[1743683771870,0.25,82566.0,82565.0,0.0009971]
[1743683771871,0.940841,82566.0,82565.0,0.0009971]
[1743683772111,0.65670285,82559.0,82556.0,0.0003366]
[1743683772328,0.594368,82557.0,82556.0,0.0003366]
[1743683772530,1.00566445,82557.0,82556.0,0.0003366]
[1743683773348,1.00566445,82557.0,82508.0,0.01212]
[1743683773349,0.012118,82520.0,82508.0,0.01212]
[1743683773523,0.28,82520.0,82515.0,0.242379]
[1743683773659,0.28,82520.0,82511.0,0.012119]
[1743683773865,0.012119,82515.0,82508.0,0.00046223]
[1743683774136,0.262119,82515.0,82508.0,0.00046223]
[1743683774316,0.012119,82514.0,82508.0,0.00046223]
[1743683774518,0.512385,82514.0,82508.0,0.00046223]
[1743683774722,0.512385,82514.0,82512.0,0.242388]
[1743683774723,0.27,82514.0,82512.0,0.242388]
[1743683774935,0.27,82514.0,82510.0,0.012119]
[1743683775161,0.012119,82509.0,82508.0,0.00046223]
[1743683775366,0.292119,82509.0,82508.0,0.00046223]
[1743683775606,0.64665985,82509.0,82508.0,0.00046223]
[1743683775804,0.76341545,82509.0,82508.0,0.00046223]
[1743683776313,0.632119,82509.0,82508.0,0.00046223]
[1743683776516,0.62,82509.0,82508.0,0.00046223]
[1743683776919,0.61942908,82509.0,82508.0,0.01712617]
[1743683777153,0.61580146,82509.0,82508.0,0.02924617]
[1743683777379,0.27580146,82509.0,82508.0,0.01712617]
[1743683778212,0.27580146,82509.0,82508.0,0.00955168]
[1743683779222,0.27580146,82509.0,82508.0,0.02167168]
[1743683780303,0.27580146,82509.0,82508.0,0.13842728]
[1743683781760,0.0464,82530.0,82526.0,0.012117]
[1743683781966,0.25,82530.0,82528.0,0.242341]
[1743683782173,0.25,82530.0,82529.0,0.012116]
[1743683782537,0.25,82530.0,82527.0,0.254458]
[1743683782691,0.34,82529.0,82527.0,0.254458]
[1743683782899,0.58,82529.0,82527.0,0.254458]
[1743683783119,0.58,82529.0,82526.0,0.242344]
[1743683783411,0.58,82529.0,82525.0,0.0009815]
[1743683783630,0.242342,82528.0,82525.0,0.0009815]
[1743683783838,0.472342,82528.0,82525.0,0.0009815]
[1743683784250,0.23,82528.0,82525.0,0.2433305]
[1743683786021,0.472343,82528.0,82525.0,0.0009815]
[1743683786227,0.012117,82526.0,82525.0,0.0009815]
[1743683786450,0.012117,82526.0,82514.0,0.012119]
[1743683786451,0.594468,82525.0,82514.0,0.012119]
[1743683786652,0.012117,82524.0,82517.0,0.242373]
[1743683786876,0.25,82524.0,82523.0,0.254473]
[1743683787253,0.25,82524.0,82523.0,0.2554589]
[1743683787488,0.25,82524.0,82523.0,0.3722145]
[1743683790189,0.25,82524.0,82523.0,0.0009859]
[1743683790190,0.50447,82524.0,82523.0,0.0009859]
[1743683790388,0.50447,82524.0,82509.0,0.254514]
[1743683790389,0.012118,82516.0,82509.0,0.254514]
[1743683790638,0.262118,82516.0,82510.0,0.3591486]
[1743683790798,0.242381,82515.0,82510.0,0.3591486]
[1743683790998,0.242388,82513.0,82506.0,0.01212]
[1743683791200,0.242388,82513.0,82512.0,0.242388]
[1743683791201,0.23,82513.0,82512.0,0.242388]
[1743683791455,0.582341,82529.0,82522.0,0.012117]
[1743683791661,0.862341,82529.0,82523.0,0.242353]
[1743683792030,0.242345,82527.0,82519.0,0.254485]
[1743683792223,0.522345,82527.0,82521.0,0.2554615]
[1743683792432,0.28,82527.0,82525.0,0.24235]
[1743683793286,0.28,82527.0,82523.0,0.254472]
[1743683793616,0.28,82527.0,82524.0,0.242353]
[1743683794151,0.28,82527.0,82526.0,0.012117]
[1743683794363,0.28,82527.0,82526.0,0.254464]
[1743683794544,0.2803368,82527.0,82526.0,0.254464]
[1743683795346,0.2803368,82527.0,82526.0,0.3712196]
[1743683795550,0.0303368,82527.0,82526.0,0.3712196]
[1743683795765,0.0003368,82527.0,82526.0,0.3712196]
[1743683795966,8e-07,82527.0,82526.0,0.7112196]
[1743683796171,8e-07,82527.0,82526.0,0.7581196]
[1743683796599,8e-07,82527.0,82526.0,0.80266045]
[1743683797007,8e-07,82527.0,82526.0,0.4181196]
[1743683797208,0.1100008,82527.0,82526.0,0.3712196]
[1743683797409,0.1300008,82527.0,82526.0,0.5144596]
[1743683799335,0.05254836,82552.0,82548.0,0.242283]
[1743683799569,0.61,82552.0,82551.0,0.2553851]
[1743683800287,0.27,82552.0,82551.0,0.2553851]
[1743683800740,0.27,82552.0,82551.0,0.25584733]
[1743683801121,0.27,82552.0,82551.0,0.37260293]
[1743683802245,0.27,82552.0,82551.0,0.11821593]
[1743683802464,0.524384,82552.0,82551.0,0.00046223]
[1743683802688,0.909484,82552.0,82551.0,0.00046223]
[1743683802923,0.92402485,82552.0,82551.0,0.00046223]
[1743683803149,1.04078045,82552.0,82551.0,0.00046223]
[1743683803987,1.04078045,82552.0,82526.0,0.012117]
[1743683803988,1.02866745,82552.0,82501.0,0.004]
[1743683804195,0.242354,82524.0,82514.0,0.012119]
[1743683804404,0.28,82524.0,82520.0,0.242364]
[1743683804815,0.012117,82522.0,82515.0,0.0131105]
[1743683805017,0.24,82522.0,82517.0,0.254491]
[1743683805219,0.24,82522.0,82521.0,0.25448]
[1743683805431,0.24,82522.0,82521.0,0.3712356]
[1743683805901,0.01,82547.0,82521.0,0.3712356]
[1743683806030,0.0451,82552.0,82517.0,0.012118]
[1743683806031,1.09162,82552.0,82548.0,0.012114]
[1743683806230,1.573891,82552.0,82547.0,0.242285]
[1743683806454,0.012113,82550.0,82540.0,0.012115]
[1743683806655,0.012114,82543.0,82537.0,0.242314]
[1743683806858,0.482297,82543.0,82538.0,0.242311]
[1743683807062,0.242301,82542.0,82534.0,0.242323]
[1743683807260,0.242306,82541.0,82534.0,0.24237338]
[1743683807465,0.27,82541.0,82534.0,0.24237338]
[1743683807688,0.242306,82540.0,82534.0,0.24237338]
[1743683808054,0.242312,82539.0,82534.0,0.24237338]
[1743683808267,0.472312,82539.0,82534.0,0.24237338]
[1743683808786,0.242312,82538.0,82534.0,0.24237338]
[1743683808985,0.482312,82538.0,82534.0,0.24237338]
[1743683809593,0.482312,82538.0,82534.0,0.24335958]
[1743683810370,0.24,82538.0,82535.0,0.242321]
[1743683810847,0.482314,82538.0,82534.0,0.24335958]
[1743683811007,0.24,82538.0,82534.0,0.24335958]
[1743683811211,0.24,82538.0,82534.0,0.25547558]
[1743683811419,0.24,82538.0,82537.0,0.25443]
[1743683811599,0.24,82538.0,82537.0,0.3711856]
[1743683812014,0.0499,82564.0,82563.0,0.242239]
[1743683812227,0.34,82563.0,82557.0,0.242256]
[1743683812467,0.24225,82559.0,82553.0,0.25438]
[1743683812667,0.522253,82559.0,82553.0,0.012113]
[1743683812869,0.28,82559.0,82557.0,0.242256]
[1743683813383,0.28,82559.0,82558.0,0.254365]
[1743683813586,0.01173473,82559.0,82558.0,0.254365]
[1743683813784,0.25398773,82559.0,82553.0,0.012113]
[1743683813996,0.02384673,82559.0,82554.0,0.242265]
[1743683814191,0.242253,82558.0,82554.0,0.242265]
[1743683814352,0.242253,82558.0,82557.0,0.242256]
[1743683814353,0.25,82558.0,82557.0,0.242256]
[1743683814554,0.25,82558.0,82556.0,0.242259]
[1743683814799,0.25,82558.0,82557.0,0.242256]
[1743683815671,0.25,82558.0,82556.0,0.254371]
[1743683816058,0.25,82558.0,82557.0,0.242256]
[1743683817525,0.25,82558.0,82557.0,0.254368]
[1743683817930,0.25,82558.0,82557.0,0.3711236]
[1743683818604,0.25,82558.0,82557.0,0.1167556]
[1743683818781,0.25,82558.0,82554.0,0.0009931]
[1743683818782,0.242262,82555.0,82554.0,0.0009931]
[1743683818992,0.522262,82555.0,82554.0,0.0009931]
[1743683819195,0.534375,82555.0,82554.0,0.0009931]
[1743683819598,0.922775,82555.0,82554.0,0.0009931]
[1743683819901,0.922775,82555.0,82522.0,0.01218657]
[1743683819902,0.012115,82541.0,82531.0,0.154876]
[1743683820115,0.522306,82541.0,82540.0,5.038e-05]
[1743683820686,0.534421,82541.0,82540.0,5.038e-05]
[1743683820920,2.0375366,82541.0,82540.0,5.038e-05]
[1743683821188,2.11389049,82541.0,82540.0,5.038e-05]
[1743683822379,2.16049049,82541.0,82540.0,5.038e-05]
[1743683823216,2.16049049,82541.0,82540.0,3.8e-07]
[1743683823425,0.64068,82521.0,82520.0,0.0003368]
[1743683823607,0.64068,82521.0,82520.0,4e-08]
[1743683823608,1.09697645,82521.0,82520.0,4e-08]
[1743683823803,0.594513,82510.0,82509.0,0.0003368]
[1743683824067,0.594513,82510.0,82509.0,0.00040404]
[1743683824068,2.05220945,82510.0,82509.0,0.00040404]
[1743683825729,0.3854,82509.0,82501.0,0.004]
[1743683825944,0.3854,82509.0,82486.0,0.0001]
[1743683825945,0.60910385,82494.0,82486.0,0.0001]
[1743683826087,0.99585945,82494.0,82493.0,0.02504611]
[1743683829033,1.00793028,82494.0,82493.0,0.02504611]
[1743683829944,1.00793028,82494.0,82493.0,0.02323591]
[1743683834175,1.00793028,82494.0,82493.0,0.02340421]
[1743683836019,1.10133028,82494.0,82493.0,0.02340421]
[1743683836360,0.60912585,82487.0,82486.0,0.0001]
[1743683836561,0.98588145,82487.0,82486.0,0.0001]
[1743683836780,0.35454085,82486.0,82473.0,0.0003364]
[1743683836984,0.35454085,82486.0,82467.0,7.3e-07]
[1743683836985,0.65741207,82468.0,82467.0,7.3e-07]
[1743683837183,0.60920185,82462.0,82461.0,8e-05]
[1743683837392,0.60920185,82462.0,82461.0,0.00054268]
[1743683837393,0.95595745,82462.0,82461.0,0.00054268]
[1743683839277,0.95595745,82462.0,82444.0,0.05]
[1743683839278,0.60925485,82445.0,82444.0,0.05]
[1743683839526,1.11033045,82445.0,82444.0,0.05013871]
[1743683839903,0.00185473,82411.0,82410.0,0.012134]
[1743683840105,0.11185473,82411.0,82410.0,0.01227328]
[1743683840701,0.11,82411.0,82410.0,0.13145564]
[1743683840901,0.11,82411.0,82410.0,0.12902888]
[1743683842895,1.04728,82426.0,82425.0,0.012132]
[1743683843095,0.025,82423.0,82422.0,0.24265]
[1743683843357,0.295,82423.0,82422.0,0.012132]
[1743683843621,0.27,82423.0,82422.0,0.254785]
[1743683845557,0.012133,82417.0,82410.0,0.00013928]
[1743683845767,0.00185473,82411.0,82410.0,0.24282728]
[1743683845971,0.25185473,82411.0,82410.0,0.25496128]
[1743683846304,0.25185473,82411.0,82410.0,0.25512978]
[1743683847004,0.25185473,82411.0,82410.0,0.23512978]
[1743683849569,0.25,82411.0,82410.0,0.35188538]
[1743683849830,0.00185473,82418.0,82417.0,0.254801]
[1743683850015,0.28185473,82418.0,82417.0,0.254801]
[1743683851524,0.30685473,82418.0,82417.0,0.254801]
[1743683851945,0.30398239,82418.0,82417.0,0.254801]
[1743683852554,0.025,82416.0,82410.0,0.1290581]
[1743683852755,0.242677,82414.0,82410.0,0.0001685]
[1743683853025,0.012134,82412.0,82410.0,0.0001685]
[1743683853228,0.27982,82411.0,82410.0,0.0001685]
[1743683853402,0.59742,82411.0,82410.0,0.0001685]
[1743683853975,0.3426,82411.0,82410.0,0.0001685]
[1743683855081,0.27,82411.0,82410.0,0.0123025]
[1743683856310,0.27,82411.0,82410.0,0.0001685]
[1743683856311,0.295,82411.0,82410.0,0.0001685]
[1743683856722,0.27,82411.0,82410.0,0.0001685]
[1743683856912,0.27,82411.0,82410.0,0.2549905]
[1743683857110,0.27,82411.0,82410.0,0.3717461]
[1743683859740,0.27,82411.0,82410.0,0.1459685]
[1743683859944,0.27,82411.0,82410.0,0.5176661]
[1743683863124,0.27,82411.0,82410.0,0.3887765]
[1743683863282,0.27,82411.0,82410.0,0.2549905]
[1743683863490,0.27,82411.0,82410.0,0.4012705]
[1743683863862,0.27,82411.0,82410.0,0.3891365]
[1743683864065,0.27,82411.0,82410.0,0.0001685]
[1743683864254,0.295,82411.0,82410.0,0.0001685]
[1743683865717,0.295,82411.0,82410.0,0.2428565]
[1743683867150,0.295,82411.0,82410.0,0.0001685]
[1743683867971,0.2932339,82411.0,82410.0,0.0001685]
[1743683868337,0.5359199,82411.0,82410.0,0.0001685]
[1743683868570,0.5480539,82411.0,82410.0,0.0001685]
[1743683868781,0.5359199,82411.0,82410.0,0.0001685]
[1743683868985,0.2932339,82411.0,82410.0,0.0001685]
[1743683869587,0.5480539,82411.0,82410.0,0.0001685]
[1743683869794,0.55922614,82411.0,82410.0,0.0001685]
[1743683870955,0.54709214,82411.0,82410.0,0.0001685]
[1743683871443,0.2932339,82411.0,82410.0,0.0001685]
[1743683872215,0.5480539,82411.0,82410.0,0.0001685]
[1743683872823,0.9373539,82411.0,82410.0,0.0001685]
[1743683873410,0.94852292,82411.0,82410.0,0.0001685]
[1743683874267,0.99702292,82411.0,82410.0,0.0001685]
[1743683876550,1.12831937,82411.0,82410.0,0.0001685]
[1743683878204,0.7310339,82411.0,82410.0,0.0001685]
[1743683878397,0.9858539,82411.0,82410.0,0.0001685]
[1743683879877,1.1026095,82411.0,82410.0,0.0001685]
[1743683880085,1.11715035,82411.0,82410.0,0.0001685]
[1743683880431,0.9858539,82411.0,82410.0,0.0001685]
[1743683881594,1.11715035,82411.0,82410.0,0.0001685]
[1743683881957,1.11748755,82411.0,82410.0,0.0001685]
[1743683883799,0.2935711,82411.0,82410.0,0.0001685]
[1743683884192,0.6335711,82411.0,82410.0,0.0001685]
[1743683884394,0.8762571,82411.0,82410.0,0.0001685]
[1743683885022,0.6335711,82411.0,82410.0,0.0001685]
[1743683885216,0.8762571,82411.0,82410.0,0.0001685]
[1743683886168,0.8883911,82411.0,82410.0,0.0001685]
[1743683886718,0.6335711,82411.0,82410.0,0.0001685]
[1743683888185,0.2685711,82411.0,82410.0,0.2549905]
[1743683888432,0.2685711,82411.0,82410.0,0.0001685]
[1743683888859,0.2685711,82411.0,82410.0,0.2549905]
[1743683890832,0.2685711,82411.0,82410.0,0.0001685]
[1743683891455,0.5483911,82411.0,82410.0,0.0001685]
[1743683893711,0.8883911,82411.0,82410.0,0.0001685]
[1743683902751,0.9367911,82411.0,82410.0,0.0001685]
[1743683902944,1.06808755,82411.0,82410.0,5e-07]
[1743683904312,1.06808755,82411.0,82369.0,0.10724196]
[1743683904313,0.61834551,82379.0,82369.0,0.10724196]
[1743683904581,0.88834551,82379.0,82369.0,0.10724196]
[1743683905294,0.88834551,82379.0,82363.0,0.389147]
[1743683905295,0.88834551,82379.0,82368.0,0.35005396]
[1743683905577,0.88834551,82379.0,82368.0,0.10724196]
[1743683905818,0.88834551,82379.0,82378.0,0.00063031]
[1743683906907,0.9034799,82379.0,82378.0,0.00063031]
[1743683907465,1.03477635,82379.0,82378.0,0.00063031]
[1743683908034,0.9034799,82379.0,82378.0,0.00063031]
[1743683908234,0.549919,82379.0,82378.0,0.00063031]
[1743683908433,0.295,82379.0,82378.0,0.00063031]
[1743683908649,0.307139,82379.0,82378.0,0.00063031]
[1743683909842,0.295,82379.0,82378.0,0.00063031]
[1743683909961,0.27,82379.0,82378.0,0.01276931]
[1743683910391,0.295,82379.0,82378.0,0.01276931]
[1743683910616,0.27,82379.0,82378.0,0.01276931]
[1743683911709,0.27,82379.0,82378.0,0.12952491]
[1743683914053,0.15728069,82420.0,82378.0,0.12952491]
[1743683914054,0.0463,82415.0,82395.0,0.012136]
[1743683914270,0.242695,82408.0,82400.0,0.242718]
[1743683914471,0.24,82408.0,82407.0,0.25483]
[1743683914841,0.24,82408.0,82407.0,0.3715856]
[1743683915877,0.24013836,82408.0,82407.0,0.3715856]
[1743683916118,0.24013836,82408.0,82406.0,0.242699]
[1743683916427,0.24013836,82408.0,82407.0,0.389617]
[1743683916744,0.24013836,82408.0,82407.0,0.401751]
[1743683917279,0.00013836,82408.0,82407.0,0.5185066]
[1743683917486,0.01013836,82408.0,82407.0,0.5185066]
[1743683917896,0.00013836,82408.0,82407.0,0.5185066]
[1743683918255,0.03013836,82408.0,82407.0,0.5185066]
[1743683919284,0.00013836,82408.0,82407.0,0.5185066]
[1743683919702,0.03013836,82408.0,82407.0,0.5185066]
[1743683919894,0.00013836,82408.0,82407.0,0.5185066]
[1743683920218,0.03000036,82408.0,82407.0,0.9036066]
[1743683922320,0.03000036,82408.0,82407.0,0.8585066]
[1743683924572,0.03000036,82408.0,82407.0,0.8584266]
[1743683924975,0.03000036,82408.0,82407.0,0.5186266]
[1743683925737,0.03000036,82408.0,82407.0,0.5185866]
[1743683925990,0.03000036,82408.0,82407.0,0.5185466]
[1743683926214,0.03000036,82408.0,82407.0,0.3715866]
[1743683926463,0.03000036,82408.0,82407.0,0.5185466]
[1743683926888,0.03000036,82408.0,82405.0,0.14692]
[1743683926889,0.594835,82406.0,82405.0,0.14692]
[1743683927090,0.619853,82400.0,82399.0,0.10724196]
[1743683927328,0.899853,82400.0,82399.0,0.10724196]
[1743683927808,0.34,82397.0,82391.0,0.242744]
[1743683927944,0.57,82397.0,82392.0,0.242739]
[1743683928142,0.012136,82393.0,82385.0,0.35000296]
[1743683928348,0.352137,82386.0,82385.0,0.10724196]
[1743683928567,0.484896,82386.0,82385.0,0.10724196]
[1743683928766,0.849896,82386.0,82385.0,0.10724196]
[1743683928974,0.837759,82386.0,82385.0,0.10724196]
[1743683929622,0.509896,82386.0,82385.0,0.10724196]
[1743683930031,0.255,82386.0,82385.0,0.10724196]
[1743683930204,0.255,82386.0,82385.0,0.35000396]
[1743683930778,0.23,82386.0,82385.0,0.47889756]
[1743683930985,1.04816,82406.0,82402.0,0.012135]
[1743683931198,0.0253372,82411.0,82407.0,0.242697]
[1743683931398,0.0003372,82411.0,82407.0,0.254831]
[1743683931630,0.15033696,82408.0,82407.0,0.254831]
[1743683932473,0.15033696,82408.0,82407.0,0.3715866]
[1743683936881,0.15033696,82408.0,82407.0,0.14636]
[1743683937526,0.15033696,82408.0,82404.0,0.14644]
[1743683937733,0.15033696,82408.0,82404.0,0.2631956]
[1743683938001,0.15033696,82408.0,82405.0,0.389098]
[1743683938230,0.15033696,82408.0,82406.0,0.242697]
[1743683938427,0.15033696,82408.0,82407.0,0.242697]
[1743683939442,0.15033696,82408.0,82407.0,0.3715866]
[1743683940272,0.15033696,82408.0,82407.0,0.3717548]
[1743683945581,0.15033696,82408.0,82407.0,0.3717548]
[1743683946291,0.15033696,82408.0,82407.0,0.0001682]
[1743683947442,0.15033696,82408.0,82407.0,0.2428652]
[1743683947710,0.15033696,82408.0,82407.0,0.3717548]
[1743683947960,0.03033696,82408.0,82407.0,0.3717548]
[1743683948209,0.0003372,82411.0,82407.0,0.3717548]
[1743683948210,1.6e-07,82411.0,82410.0,0.254822]
[1743683948439,1.6e-07,82411.0,82410.0,0.3715776]
[1743683948641,0.0003372,82418.0,82417.0,0.25180084]
[1743683948834,0.0003372,82418.0,82417.0,0.51503644]
[1743683949256,0.2803372,82418.0,82417.0,0.51503644]
[1743683949394,0.2203372,82418.0,82417.0,0.51499644]
[1743683949597,0.0003372,82418.0,82417.0,0.51499644]
[1743683950413,0.2703372,82418.0,82417.0,0.2631956]
[1743683950601,0.2703372,82418.0,82417.0,0.5179566]
[1743683950824,0.2703372,82418.0,82417.0,0.5181166]
[1743683951242,0.2703372,82418.0,82417.0,0.2754486]
[1743683951445,0.2703372,82418.0,82417.0,0.5180766]
[1743683952196,0.2703372,82418.0,82417.0,0.5179966]
[1743683952476,0.2703372,82418.0,82417.0,0.5058636]
[1743683952906,0.2703372,82418.0,82417.0,0.2631956]
[1743683953112,0.242688,82411.0,82407.0,0.0001682]
[1743683953337,0.242694,82408.0,82407.0,0.0001682]
[1743683953536,0.0474,82410.0,82408.0,0.14644]
[1743683953537,0.290089,82410.0,82408.0,0.14644]
[1743683953749,0.3274,82410.0,82408.0,0.14644]
[1743683954154,0.570091,82410.0,82408.0,0.14644]
[1743683954505,0.279828,82408.0,82407.0,0.0001682]
[1743683954706,0.849828,82408.0,82407.0,0.0001682]
[1743683954914,0.897228,82408.0,82407.0,0.0001682]
[1743683955119,0.946328,82408.0,82407.0,0.0001682]
[1743683958561,0.23,82408.0,82407.0,0.2549992]
[1743683958757,0.255,82408.0,82407.0,0.0001682]
[1743683959465,0.497694,82408.0,82407.0,0.0001682]
[1743683960209,0.255,82408.0,82407.0,0.0001682]
[1743683960406,0.509828,82408.0,82407.0,0.0001682]
[1743683960825,0.497694,82408.0,82407.0,0.0001682]
[1743683961029,0.255,82408.0,82407.0,0.0001682]
[1743683961231,0.497694,82408.0,82407.0,0.0001682]
[1743683962612,0.509828,82408.0,82407.0,0.0001682]
[1743683962942,0.27390346,82408.0,82407.0,0.0001682]
[1743683963194,0.40390346,82408.0,82407.0,0.0001682]
[1743683963740,0.279909,82382.0,82366.0,0.242815]
[1743683963943,0.557609,82382.0,82381.0,0.10886564]
[1743683964561,0.557609,82382.0,82381.0,0.00046211]
[1743683964786,0.897609,82382.0,82381.0,0.00046211]
[1743683965617,1.0143646,82382.0,82381.0,0.00046211]
[1743683965817,1.02890545,82382.0,82381.0,0.00046211]
[1743683969307,1.02890545,82382.0,82351.0,0.004122]
[1743683969308,0.63445985,82379.0,82378.0,7.3e-07]
[1743683969571,0.99121545,82379.0,82378.0,0.00013909]
[1743683970859,0.2662849,82352.0,82351.0,0.004122]
[1743683971064,0.2662849,82352.0,82351.0,0.00426132]
[1743683971065,0.4962849,82352.0,82351.0,0.00426132]
[1743683971278,0.5084269,82352.0,82351.0,0.00426132]
[1743683974063,0.23,82352.0,82351.0,0.25926632]
[1743683974221,0.23,82352.0,82351.0,0.37602192]
[1743683976608,0.23,82359.0,82354.0,0.242854]
[1743683976830,0.23,82359.0,82353.0,0.1288976]
[1743683976831,0.242844,82358.0,82357.0,0.00307504]
[1743683977038,0.242844,82358.0,82353.0,0.1167556]
[1743683977039,0.242849,82356.0,82353.0,0.1167556]
[1743683977236,0.1,82356.0,82353.0,0.3596106]
[1743683977433,0.1,82356.0,82354.0,0.242853]
[1743683978292,0.1,82356.0,82354.0,0.254995]
[1743683978705,0.1,82356.0,82355.0,0.3717486]
[1743683980926,0.0003366,82362.0,82361.0,0.254974]
[1743683981125,0.1603366,82362.0,82361.0,0.3717296]
[1743683982429,0.1603366,82362.0,82359.0,0.242836]
[1743683982640,0.1603366,82362.0,82360.0,0.3595906]
[1743683982839,0.1603366,82362.0,82361.0,0.400334]
[1743683983184,0.1603366,82362.0,82361.0,0.5170896]
[1743683983761,0.1603366,82362.0,82361.0,0.14536]
[1743683984099,0.1603366,82362.0,82361.0,0.400334]
[1743683985263,0.1603366,82362.0,82361.0,0.254974]
[1743683985608,0.1603366,82362.0,82361.0,0.400094]
[1743683985782,0.1603366,82362.0,82361.0,0.5168496]
[1743683988903,0.0003366,82362.0,82361.0,0.5168496]
[1743683989437,0.1103366,82362.0,82361.0,0.3717296]
[1743683989644,0.1103366,82362.0,82361.0,0.5169696]
[1743683990399,0.1103366,82362.0,82361.0,0.51966971]
[1743683990607,0.0003366,82362.0,82361.0,0.56981976]
[1743683991008,6e-07,82362.0,82361.0,0.90981976]
[1743683991787,6e-07,82362.0,82361.0,0.90989976]
[1743683992655,6e-07,82362.0,82361.0,0.86109976]
[1743683994335,0.0474,82404.0,82399.0,0.012136]
[1743683994641,0.025,82403.0,82400.0,0.242716]
[1743683994889,0.025,82400.0,82398.0,0.242721]
[1743683995165,0.305,82400.0,82399.0,0.242721]
[1743683995694,0.3054628,82400.0,82399.0,0.254857]
[1743683995889,0.3054628,82400.0,82398.0,0.254858]
[1743683996073,0.5481828,82400.0,82397.0,0.242727]
[1743683996277,0.012136,82397.0,82387.0,0.012137]
[1743683996498,0.262136,82397.0,82390.0,0.242747]
[1743683996700,0.279869,82396.0,82392.0,0.242741]
[1743683996901,0.539869,82396.0,82392.0,0.242741]
[1743683997100,0.52773,82396.0,82393.0,0.242737]
[1743683997763,0.285,82396.0,82395.0,0.242733]
[1743683998068,0.285,82396.0,82395.0,0.254869]
[1743683999096,0.26,82396.0,82395.0,0.3716246]
[1743684000061,0.285,82396.0,82395.0,0.3716246]
[1743684000260,0.297136,82396.0,82387.0,0.242755]
[1743684000440,0.285,82396.0,82392.0,0.24274]
[1743684000648,0.285,82396.0,82395.0,0.242733]
[1743684000984,0.285,82396.0,82393.0,0.1167556]
[1743684001226,0.012136,82394.0,82384.0,0.012138]
[1743684001352,0.012138,82380.0,82374.0,0.012139]
[1743684001569,0.13,82380.0,82375.0,0.2738546]
[1743684001774,0.13,82380.0,82378.0,0.242781]
[1743684002177,0.13,82380.0,82370.0,0.10815432]
[1743684002379,0.242803,82371.0,82370.0,0.10815432]
[1743684002582,0.549943,82371.0,82370.0,0.10815432]
[1743684002806,0.025,82370.0,82369.0,0.14496]
[1743684003183,0.025,82370.0,82368.0,0.10815432]
[1743684003184,0.711649,82369.0,82368.0,0.10815432]
[1743684003423,0.971649,82369.0,82368.0,0.10815432]
[1743684003802,0.98618985,82369.0,82368.0,0.10815432]
[1743684004174,0.971649,82369.0,82368.0,0.10815432]
[1743684005963,0.971649,82369.0,82355.0,0.406245]
[1743684005964,0.267848,82356.0,82355.0,0.406245]
[1743684006072,0.497848,82356.0,82355.0,0.40638432]
[1743684006276,0.497848,82356.0,82355.0,0.41034871]
[1743684006687,0.23,82356.0,82355.0,0.78209731]
[1743684007330,0.472848,82356.0,82355.0,0.41034871]
[1743684007535,0.48499,82356.0,82355.0,0.41034871]
[1743684007774,0.472848,82356.0,82355.0,0.41034871]
[1743684007970,0.50999,82356.0,82355.0,0.41034871]
[1743684008355,0.497848,82356.0,82355.0,0.41034871]
[1743684008556,0.255,82356.0,82355.0,0.41034871]
[1743684008739,0.497848,82356.0,82355.0,0.41034871]
[1743684009289,0.255,82356.0,82355.0,0.41034871]
[1743684010089,0.255,82356.0,82355.0,0.65319971]
[1743684010307,0.255,82356.0,82355.0,0.66534171]
[1743684010488,0.23,82356.0,82355.0,0.66534171]
[1743684010700,0.23,82356.0,82355.0,0.78209731]
[1743684010902,0.0455,82369.0,82368.0,0.254952]
[1743684011245,0.265,82369.0,82368.0,0.25890072]
[1743684011664,0.24,82369.0,82368.0,0.37565632]
[1743684012073,0.265,82369.0,82368.0,0.37565632]
[1743684012276,0.24,82369.0,82368.0,0.37565632]
[1743684013392,0.0472,82393.0,82385.0,0.2549]
[1743684013691,0.242744,82391.0,82388.0,0.254888]
[1743684013852,0.025,82389.0,82388.0,0.254888]
[1743684014032,0.025,82384.0,82383.0,0.242768]
[1743684014232,0.215,82384.0,82383.0,0.254906]
[1743684015136,0.242781,82379.0,82376.0,0.242788]
[1743684015338,0.26,82379.0,82378.0,0.1448]
[1743684015690,0.26,82379.0,82378.0,0.156939]
[1743684015893,0.26,82379.0,82378.0,0.39972]
[1743684016674,0.26,82379.0,82378.0,0.5164756]
[1743684017947,0.00629636,82394.0,82393.0,0.254875]
[1743684018160,0.02675916,82394.0,82393.0,0.5163906]
[1743684018352,0.0204628,82394.0,82393.0,0.5163906]
[1743684018693,0.0004628,82394.0,82393.0,0.5163906]
[1743684019713,0.0004628,82394.0,82393.0,0.399635]
[1743684020317,0.0004628,82394.0,82393.0,0.5163906]
[1743684021196,0.0004628,82394.0,82393.0,0.8563906]
[1743684021809,0.0004628,82394.0,82393.0,0.87093145]
[1743684022027,8e-07,82394.0,82393.0,0.87593145]
[1743684022197,4e-07,82396.0,82395.0,0.005]
[1743684022402,0.0003364,82411.0,82395.0,0.005]
[1743684022403,0.0003364,82411.0,82410.0,0.254822]